[Event "*** SCC Grand Prix: Titled Tuesday Blitz"]
[Site "Chess.com"]
[Date "2020.10.06"]
[Round "10"]
[White "GregShahade"]
[Black "KarstenHansch"]
[Result "1/2-1/2"]
[WhiteElo "2655"]
[BlackElo "2513"]
[TimeControl "180+1"]
[EndTime "11:57:20 PDT"]
[Termination "Game drawn - insufficient material"]

1. e4 {[%clk 0:03:00.9]} 1... c6 {[%clk 0:02:59.4]} 2. Nc3 {[%clk 0:03:00.6]}
2... d5 {[%clk 0:03:00]} 3. Nf3 {[%clk 0:03:01.1]} 3... Bg4 {[%clk 0:02:59]} 4.
h3 {[%clk 0:03:00.8]} 4... Bxf3 {[%clk 0:02:59.3]} 5. Qxf3 {[%clk 0:03:01.7]}
5... e6 {[%clk 0:02:59.8]} 6. Be2 {[%clk 0:03:02.1]} 6... Bc5 {[%clk 0:02:54.7]}
7. Qg3 {[%clk 0:03:02.4]} 7... Bd4 {[%clk 0:02:51.3]} 8. d3 {[%clk 0:03:02.7]}
8... Ne7 {[%clk 0:02:49.7]} 9. Bd1 {[%clk 0:03:01.5]} 9... Ng6 {[%clk
0:02:46.3]} 10. O-O {[%clk 0:03:01.6]} 10... Nd7 {[%clk 0:02:44.2]} 11. Ne2
{[%clk 0:03:01.9]} 11... Bb6 {[%clk 0:02:44.2]} 12. c3 {[%clk 0:03:02.2]} 12...
O-O {[%clk 0:02:42.8]} 13. Bc2 {[%clk 0:03:02.4]} 13... e5 {[%clk 0:02:40.1]}
14. Be3 {[%clk 0:02:57.8]} 14... Bxe3 {[%clk 0:02:39.3]} 15. Qxe3 {[%clk
0:02:58.3]} 15... Qb6 {[%clk 0:02:39]} 16. exd5 {[%clk 0:02:36.4]} 16... cxd5
{[%clk 0:02:29.5]} 17. Qxb6 {[%clk 0:02:28.7]} 17... Nxb6 {[%clk 0:02:29.2]} 18.
f4 {[%clk 0:02:28.7]} 18... exf4 {[%clk 0:02:24.9]} 19. Nxf4 {[%clk 0:02:29]}
19... Nxf4 {[%clk 0:02:25.5]} 20. Rxf4 {[%clk 0:02:29.8]} 20... Rfe8 {[%clk
0:02:26.1]} 21. Kf1 {[%clk 0:02:22]} 21... Re7 {[%clk 0:02:23.6]} 22. Re1 {[%clk
0:02:21.6]} 22... Rae8 {[%clk 0:02:23.5]} 23. Rxe7 {[%clk 0:02:17.2]} 23... Rxe7
{[%clk 0:02:24.4]} 24. Bb3 {[%clk 0:02:15.6]} 24... g6 {[%clk 0:02:13.1]} 25.
Rb4 {[%clk 0:02:13.7]} 25... Re3 {[%clk 0:02:08.1]} 26. a4 {[%clk 0:02:00.2]}
26... Rxd3 {[%clk 0:02:05.2]} 27. a5 {[%clk 0:01:53]} 27... Nd7 {[%clk
0:02:05.1]} 28. Ke2 {[%clk 0:01:33.3]} 28... Rg3 {[%clk 0:01:29.9]} 29. Bxd5
{[%clk 0:01:29.7]} 29... b6 {[%clk 0:01:29.3]} 30. Rf4 {[%clk 0:01:13.9]} 30...
Rg5 {[%clk 0:01:19.9]} 31. Bxf7+ {[%clk 0:01:04.1]} 31... Kg7 {[%clk 0:01:20.1]}
32. axb6 {[%clk 0:01:01.7]} 32... axb6 {[%clk 0:01:18.7]} 33. Ba2 {[%clk
0:00:53.9]} 33... Rxg2+ {[%clk 0:01:17.7]} 34. Rf2 {[%clk 0:00:46.7]} 34...
Rxf2+ {[%clk 0:01:13.6]} 35. Kxf2 {[%clk 0:00:47.6]} 35... Kf6 {[%clk
0:01:13.8]} 36. Ke3 {[%clk 0:00:43.9]} 36... Ke5 {[%clk 0:01:13.8]} 37. h4
{[%clk 0:00:43.4]} 37... Nc5 {[%clk 0:01:13.5]} 38. Bg8 {[%clk 0:00:41.5]} 38...
h6 {[%clk 0:01:12]} 39. Bh7 {[%clk 0:00:38]} 39... g5 {[%clk 0:01:09.4]} 40.
hxg5 {[%clk 0:00:38.9]} 40... hxg5 {[%clk 0:01:09.3]} 41. b4 {[%clk 0:00:37.2]}
41... Ne6 {[%clk 0:01:07.1]} 42. c4 {[%clk 0:00:35.8]} 42... Nd4 {[%clk
0:01:06.1]} 43. c5 {[%clk 0:00:31.6]} 43... bxc5 {[%clk 0:01:01.8]} 44. bxc5
{[%clk 0:00:32.5]} 44... Kd5 {[%clk 0:01:00.9]} 45. c6 {[%clk 0:00:23.8]} 45...
Nxc6 {[%clk 0:00:57]} 46. Be4+ {[%clk 0:00:23.7]} 46... Kd6 {[%clk 0:00:57.2]}
47. Bxc6 {[%clk 0:00:24]} 47... Kxc6 {[%clk 0:00:58.1]} 48. Ke4 {[%clk 0:00:23]}
48... g4 {[%clk 0:00:58.6]} 49. Kf4 {[%clk 0:00:23.3]} 49... g3 {[%clk
0:00:58.7]} 50. Kxg3 {[%clk 0:00:23.5]} 1/2-1/2

[Event "*** SCC Grand Prix: Titled Tuesday Blitz"]
[Site "Chess.com"]
[Date "2020.10.06"]
[Round "10"]
[White "Shuvalov"]
[Black "MVM2008"]
[Result "1-0"]
[WhiteElo "2413"]
[BlackElo "2234"]
[TimeControl "180+1"]
[EndTime "11:57:21 PDT"]
[Termination "Shuvalov won by checkmate"]

1. Nf3 {[%clk 0:02:47.4]} 1... Nf6 {[%clk 0:02:50.6]} 2. c4 {[%clk 0:02:47.2]}
2... g6 {[%clk 0:02:49.1]} 3. Nc3 {[%clk 0:02:47.2]} 3... Bg7 {[%clk 0:02:49.4]}
4. d4 {[%clk 0:02:47.8]} 4... d6 {[%clk 0:02:49.9]} 5. e4 {[%clk 0:02:47.9]}
5... O-O {[%clk 0:02:50.2]} 6. Be2 {[%clk 0:02:47]} 6... e5 {[%clk 0:02:50.3]}
7. O-O {[%clk 0:02:47.4]} 7... Nc6 {[%clk 0:02:49.9]} 8. d5 {[%clk 0:02:47.4]}
8... Ne7 {[%clk 0:02:49.8]} 9. Ne1 {[%clk 0:02:47.1]} 9... Nd7 {[%clk
0:02:45.5]} 10. f3 {[%clk 0:02:47.4]} 10... f5 {[%clk 0:02:45.5]} 11. g4 {[%clk
0:02:48]} 11... f4 {[%clk 0:02:38.2]} 12. h4 {[%clk 0:02:45.6]} 12... h5 {[%clk
0:02:09.1]} 13. g5 {[%clk 0:02:43.8]} 13... Re8 {[%clk 0:02:07.6]} 14. Kh2
{[%clk 0:02:43.7]} 14... Nf8 {[%clk 0:02:07.4]} 15. Rg1 {[%clk 0:02:43.1]} 15...
Qd7 {[%clk 0:01:59.3]} 16. Bf1 {[%clk 0:02:43.1]} 16... a6 {[%clk 0:01:58.6]}
17. Nd3 {[%clk 0:02:42.8]} 17... b5 {[%clk 0:01:54.2]} 18. c5 {[%clk 0:02:42.6]}
18... Nh7 {[%clk 0:01:45.2]} 19. c6 {[%clk 0:02:40.3]} 19... Qd8 {[%clk
0:01:44.2]} 20. a4 {[%clk 0:02:37.9]} 20... Rb8 {[%clk 0:01:41.2]} 21. axb5
{[%clk 0:02:36.6]} 21... axb5 {[%clk 0:01:42.1]} 22. Nb4 {[%clk 0:02:35.2]}
22... Kh8 {[%clk 0:01:18.5]} 23. Ra7 {[%clk 0:02:33.1]} 23... Ng8 {[%clk
0:00:55.8]} 24. Bd2 {[%clk 0:02:28]} 24... Bf8 {[%clk 0:00:45.6]} 25. Nxb5
{[%clk 0:02:26.9]} 25... Rxb5 {[%clk 0:00:35.8]} 26. Bxb5 {[%clk 0:02:27.8]}
26... Be7 {[%clk 0:00:35.4]} 27. Ra8 {[%clk 0:02:16.1]} 27... Bxg5 {[%clk
0:00:27.5]} 28. hxg5 {[%clk 0:02:13.9]} 28... Nxg5 {[%clk 0:00:27.6]} 29. Rxc8
{[%clk 0:02:06.1]} 29... Qxc8 {[%clk 0:00:19.1]} 30. Rxg5 {[%clk 0:02:05.7]}
30... Qb8 {[%clk 0:00:17.3]} 31. Ba6 {[%clk 0:02:00]} 31... Qd8 {[%clk
0:00:15.3]} 32. Qg1 {[%clk 0:01:55]} 32... Nf6 {[%clk 0:00:15.1]} 33. Be1 {[%clk
0:01:51.7]} 33... Kh7 {[%clk 0:00:06.7]} 34. Bh4 {[%clk 0:01:46.4]} 34... Rg8
{[%clk 0:00:06.5]} 35. Kh3 {[%clk 0:01:35.3]} 35... Qb8 {[%clk 0:00:06.3]} 36.
Bb7 {[%clk 0:01:33.9]} 36... Kh6 {[%clk 0:00:04]} 37. Na6 {[%clk 0:01:30.5]}
37... Qd8 {[%clk 0:00:03.9]} 38. b4 {[%clk 0:01:28]} 38... Qf8 {[%clk
0:00:02.4]} 39. Nxc7 {[%clk 0:01:24.9]} 39... Nh7 {[%clk 0:00:03]} 40. Ne6
{[%clk 0:01:23.3]} 40... Qe8 {[%clk 0:00:02.1]} 41. c7 {[%clk 0:01:16.7]} 41...
Nxg5+ {[%clk 0:00:01.7]} 42. Qxg5+ {[%clk 0:01:15.9]} 42... Kh7 {[%clk 0:00:02]}
43. c8=Q {[%clk 0:01:13.1]} 43... Qb5 {[%clk 0:00:02.2]} 44. Qe7+ {[%clk
0:01:11.1]} 44... Kh6 {[%clk 0:00:02.2]} 45. Bg5# {[%clk 0:01:11.4]} 1-0

[Event "*** SCC Grand Prix: Titled Tuesday Blitz"]
[Site "Chess.com"]
[Date "2020.10.06"]
[Round "10"]
[White "Caterpiller35"]
[Black "Alexander_Kachko"]
[Result "0-1"]
[WhiteElo "2496"]
[BlackElo "2730"]
[TimeControl "180+1"]
[EndTime "11:57:24 PDT"]
[Termination "Alexander_Kachko won by resignation"]

1. d4 {[%clk 0:02:59.7]} 1... Nc6 {[%clk 0:03:00.1]} 2. Nf3 {[%clk 0:02:57.3]}
2... d6 {[%clk 0:03:00.4]} 3. e4 {[%clk 0:02:56.8]} 3... g6 {[%clk 0:03:00.7]}
4. Be3 {[%clk 0:02:56.5]} 4... Bg7 {[%clk 0:03:00.8]} 5. Nc3 {[%clk 0:02:56.4]}
5... Bg4 {[%clk 0:02:59.5]} 6. d5 {[%clk 0:02:50.8]} 6... Ne5 {[%clk 0:02:52.9]}
7. Be2 {[%clk 0:02:01.4]} 7... Bxf3 {[%clk 0:02:40.6]} 8. gxf3 {[%clk
0:01:59.7]} 8... Nf6 {[%clk 0:02:38.8]} 9. f4 {[%clk 0:01:59.4]} 9... Ned7
{[%clk 0:02:35.6]} 10. Qd2 {[%clk 0:01:49]} 10... c6 {[%clk 0:02:35.3]} 11. dxc6
{[%clk 0:01:48]} 11... bxc6 {[%clk 0:02:35]} 12. Rd1 {[%clk 0:01:46.6]} 12...
Qb8 {[%clk 0:02:23.4]} 13. b3 {[%clk 0:01:44.2]} 13... Qb4 {[%clk 0:02:16.2]}
14. Qd4 {[%clk 0:01:37]} 14... Qxd4 {[%clk 0:02:14.6]} 15. Bxd4 {[%clk
0:01:32.9]} 15... O-O {[%clk 0:01:46.4]} 16. h4 {[%clk 0:01:32.2]} 16... Ne8
{[%clk 0:01:45.5]} 17. h5 {[%clk 0:01:30]} 17... Bxd4 {[%clk 0:01:40.1]} 18.
Rxd4 {[%clk 0:01:30.9]} 18... Nc7 {[%clk 0:01:39.9]} 19. hxg6 {[%clk 0:01:04.9]}
19... hxg6 {[%clk 0:01:39.4]} 20. f5 {[%clk 0:01:03.6]} 20... Kg7 {[%clk
0:01:36.9]} 21. f4 {[%clk 0:00:58.6]} 21... gxf5 {[%clk 0:01:26.6]} 22. e5
{[%clk 0:00:55.7]} 22... Rh8 {[%clk 0:01:19.1]} 23. Rg1+ {[%clk 0:00:55.4]}
23... Kf8 {[%clk 0:01:18]} 24. exd6 {[%clk 0:00:55.1]} 24... Ne6 {[%clk
0:01:16.7]} 25. Rc4 {[%clk 0:00:40.2]} 25... Rc8 {[%clk 0:00:59.5]} 26. Bf3
{[%clk 0:00:31.5]} 26... Nb6 {[%clk 0:00:45.1]} 27. Rxc6 {[%clk 0:00:18.3]}
27... Rxc6 {[%clk 0:00:42.2]} 28. Bxc6 {[%clk 0:00:19.2]} 28... exd6 {[%clk
0:00:42.6]} 29. a4 {[%clk 0:00:13.6]} 29... Nd4 {[%clk 0:00:39.2]} 30. Bf3
{[%clk 0:00:03.6]} 30... Nxf3+ {[%clk 0:00:38.3]} 0-1

[Event "*** SCC Grand Prix: Titled Tuesday Blitz"]
[Site "Chess.com"]
[Date "2020.10.06"]
[Round "10"]
[White "Mbneu"]
[Black "GameOverBro"]
[Result "0-1"]
[WhiteElo "2349"]
[BlackElo "2524"]
[TimeControl "180+1"]
[EndTime "11:57:31 PDT"]
[Termination "GameOverBro won on time"]

1. d4 {[%clk 0:03:00.9]} 1... d6 {[%clk 0:03:00.9]} 2. f4 {[%clk 0:02:59.5]}
2... f5 {[%clk 0:02:57.6]} 3. Nf3 {[%clk 0:02:58.7]} 3... Nf6 {[%clk 0:02:51]}
4. g3 {[%clk 0:02:58.7]} 4... g6 {[%clk 0:02:49.4]} 5. Bg2 {[%clk 0:02:59.1]}
5... Bg7 {[%clk 0:02:50]} 6. O-O {[%clk 0:02:59.4]} 6... Nbd7 {[%clk 0:02:47.5]}
7. c4 {[%clk 0:02:59.2]} 7... Ne4 {[%clk 0:02:46.7]} 8. Nc3 {[%clk 0:02:55.7]}
8... Ndf6 {[%clk 0:02:45.6]} 9. d5 {[%clk 0:02:52.7]} 9... Nxc3 {[%clk
0:02:39.4]} 10. bxc3 {[%clk 0:02:51.4]} 10... e6 {[%clk 0:02:37]} 11. Ng5 {[%clk
0:02:45.9]} 11... exd5 {[%clk 0:02:22.8]} 12. cxd5 {[%clk 0:02:36.1]} 12... O-O
{[%clk 0:02:20.9]} 13. Rb1 {[%clk 0:02:25.1]} 13... Re8 {[%clk 0:02:09]} 14. c4
{[%clk 0:02:18.6]} 14... Ne4 {[%clk 0:02:00.5]} 15. Bxe4 {[%clk 0:01:54]} 15...
fxe4 {[%clk 0:01:58.9]} 16. Be3 {[%clk 0:01:53.4]} 16... c5 {[%clk 0:01:55.1]}
17. Ne6 {[%clk 0:01:26.5]} 17... Qe7 {[%clk 0:01:41]} 18. f5 {[%clk 0:01:21.1]}
18... gxf5 {[%clk 0:01:34.6]} 19. Bg5 {[%clk 0:01:10.2]} 19... Qf7 {[%clk
0:01:28.1]} 20. e3 {[%clk 0:00:40.6]} 20... b6 {[%clk 0:01:24.7]} 21. g4 {[%clk
0:00:31.2]} 21... Bxe6 {[%clk 0:01:12.6]} 22. dxe6 {[%clk 0:00:28.9]} 22... Qg6
{[%clk 0:01:11.8]} 23. Rxf5 {[%clk 0:00:22]} 23... Rxe6 {[%clk 0:01:02.9]} 24.
Qd5 {[%clk 0:00:21.2]} 24... Re8 {[%clk 0:01:02.9]} 25. Rbf1 {[%clk 0:00:19.8]}
25... h6 {[%clk 0:00:58.3]} 26. Bf6 {[%clk 0:00:05.4]} 26... Qxg4+ {[%clk
0:00:57.1]} 27. Kh1 {[%clk 0:00:05.3]} 27... Kh8 {[%clk 0:00:37.9]} 28. Rg1
{[%clk 0:00:02.4]} 28... Qxg1+ {[%clk 0:00:28]} 29. Kxg1 {[%clk 0:00:03.3]}
29... Bxf6 {[%clk 0:00:28]} 30. Qb7 {[%clk 0:00:02.3]} 30... R8e7 {[%clk
0:00:27]} 31. Qc8+ {[%clk 0:00:01.4]} 31... Kh7 {[%clk 0:00:26]} 0-1

[Event "*** SCC Grand Prix: Titled Tuesday Blitz"]
[Site "Chess.com"]
[Date "2020.10.06"]
[Round "10"]
[White "Mr_Sinigami"]
[Black "K_A_S_T_O_R"]
[Result "0-1"]
[WhiteElo "2495"]
[BlackElo "2721"]
[TimeControl "180+1"]
[EndTime "11:57:34 PDT"]
[Termination "K_A_S_T_O_R won on time"]

1. e4 {[%clk 0:02:59.5]} 1... c5 {[%clk 0:02:59.8]} 2. Nf3 {[%clk 0:02:58.8]}
2... d6 {[%clk 0:02:59.5]} 3. d4 {[%clk 0:02:58.4]} 3... cxd4 {[%clk 0:02:58.8]}
4. Nxd4 {[%clk 0:02:59]} 4... Nf6 {[%clk 0:02:58.8]} 5. Nc3 {[%clk 0:02:59.4]}
5... a6 {[%clk 0:02:59.2]} 6. Be2 {[%clk 0:02:52.2]} 6... e6 {[%clk 0:02:58.7]}
7. O-O {[%clk 0:02:51.4]} 7... Be7 {[%clk 0:02:59.2]} 8. Be3 {[%clk 0:02:47.4]}
8... O-O {[%clk 0:02:59.2]} 9. f4 {[%clk 0:02:46.7]} 9... Qc7 {[%clk 0:02:59.1]}
10. Qe1 {[%clk 0:02:42.4]} 10... b5 {[%clk 0:02:58.8]} 11. a3 {[%clk 0:02:41.5]}
11... Bb7 {[%clk 0:02:59]} 12. Bf3 {[%clk 0:02:40.2]} 12... Nbd7 {[%clk
0:02:59.4]} 13. Kh1 {[%clk 0:02:38.6]} 13... Nc5 {[%clk 0:02:56]} 14. Bg1 {[%clk
0:02:36.4]} 14... g6 {[%clk 0:02:53.2]} 15. Rd1 {[%clk 0:02:35]} 15... e5 {[%clk
0:02:52.4]} 16. fxe5 {[%clk 0:02:13]} 16... dxe5 {[%clk 0:02:52.3]} 17. Nb3
{[%clk 0:02:13.3]} 17... Rad8 {[%clk 0:02:47.9]} 18. Nxc5 {[%clk 0:02:07.8]}
18... Bxc5 {[%clk 0:02:46.6]} 19. Qh4 {[%clk 0:02:06.4]} 19... Kg7 {[%clk
0:02:40]} 20. Be2 {[%clk 0:01:43.2]} 20... Nd7 {[%clk 0:02:08.1]} 21. Bg4 {[%clk
0:01:27.5]} 21... Bxg1 {[%clk 0:02:02.3]} 22. Bxd7 {[%clk 0:01:18]} 22... Bd4
{[%clk 0:01:50.1]} 23. Bh3 {[%clk 0:01:06.4]} 23... f6 {[%clk 0:01:35.6]} 24.
Nd5 {[%clk 0:01:01.5]} 24... Bxd5 {[%clk 0:01:33.9]} 25. exd5 {[%clk 0:01:01.7]}
25... Bxb2 {[%clk 0:01:33.4]} 26. Qb4 {[%clk 0:00:46.7]} 26... Bd4 {[%clk
0:01:32.6]} 27. Be6 {[%clk 0:00:38.4]} 27... Bc5 {[%clk 0:01:31.4]} 28. Qb3
{[%clk 0:00:38.2]} 28... Bd6 {[%clk 0:01:19.4]} 29. a4 {[%clk 0:00:37.7]} 29...
b4 {[%clk 0:01:18.4]} 30. Rd3 {[%clk 0:00:35.1]} 30... e4 {[%clk 0:01:10.9]} 31.
Rh3 {[%clk 0:00:34]} 31... f5 {[%clk 0:01:00.6]} 32. Qe3 {[%clk 0:00:31.9]}
32... Kh8 {[%clk 0:00:57]} 33. Qg5 {[%clk 0:00:28]} 33... Qg7 {[%clk 0:00:52.3]}
34. Re1 {[%clk 0:00:23.8]} 34... Rde8 {[%clk 0:00:45.9]} 35. Ree3 {[%clk
0:00:21.5]} 35... Qa1+ {[%clk 0:00:38.4]} 0-1

[Event "*** SCC Grand Prix: Titled Tuesday Blitz"]
[Site "Chess.com"]
[Date "2020.10.06"]
[Round "10"]
[White "FramboiseDePrintemps"]
[Black "Lion-Al-Messi"]
[Result "1-0"]
[WhiteElo "2673"]
[BlackElo "2540"]
[TimeControl "180+1"]
[EndTime "11:57:36 PDT"]
[Termination "FramboiseDePrintemps won on time"]

1. d4 {[%clk 0:03:00.9]} 1... d5 {[%clk 0:02:58.5]} 2. c4 {[%clk 0:03:01.1]}
2... c6 {[%clk 0:02:58.4]} 3. Nf3 {[%clk 0:03:01.3]} 3... Nf6 {[%clk 0:02:58.4]}
4. Nc3 {[%clk 0:03:01.6]} 4... g6 {[%clk 0:02:58]} 5. Bf4 {[%clk 0:02:58]} 5...
Bg7 {[%clk 0:02:58]} 6. e3 {[%clk 0:02:58.4]} 6... O-O {[%clk 0:02:58.1]} 7. h3
{[%clk 0:02:58.6]} 7... Bf5 {[%clk 0:02:58.2]} 8. Qb3 {[%clk 0:02:55.2]} 8...
Nbd7 {[%clk 0:02:57.8]} 9. Qxb7 {[%clk 0:02:51.4]} 9... Nb6 {[%clk 0:02:57.9]}
10. Ne5 {[%clk 0:02:49.2]} 10... Rc8 {[%clk 0:02:51.9]} 11. Nxc6 {[%clk
0:02:46.8]} 11... Rxc6 {[%clk 0:02:52]} 12. Qxc6 {[%clk 0:02:47]} 12... dxc4
{[%clk 0:02:50.9]} 13. Bxc4 {[%clk 0:02:46.4]} 13... Nh5 {[%clk 0:02:47.7]} 14.
Bh2 {[%clk 0:02:43]} 14... Nxc4 {[%clk 0:02:39.7]} 15. Qxc4 {[%clk 0:02:43]}
15... Qd7 {[%clk 0:02:38.9]} 16. Qe2 {[%clk 0:02:39.2]} 16... Nf6 {[%clk
0:02:25.4]} 17. e4 {[%clk 0:02:36.5]} 17... Nxe4 {[%clk 0:02:20.9]} 18. Nxe4
{[%clk 0:02:36.8]} 18... Qxd4 {[%clk 0:02:20.8]} 19. Nc3 {[%clk 0:02:35.4]}
19... Bd3 {[%clk 0:02:20.9]} 20. Qe3 {[%clk 0:02:32.7]} 20... Qc4 {[%clk
0:02:20.7]} 21. Be5 {[%clk 0:02:29.6]} 21... f6 {[%clk 0:02:17]} 22. Rd1 {[%clk
0:02:28.5]} 22... Rd8 {[%clk 0:02:07.3]} 23. Bg3 {[%clk 0:02:24.3]} 23... f5
{[%clk 0:02:06.9]} 24. Be5 {[%clk 0:02:01.5]} 24... Bxe5 {[%clk 0:02:06.7]} 25.
Qxe5 {[%clk 0:02:01.6]} 25... Rd6 {[%clk 0:02:07.2]} 26. Qe3 {[%clk 0:01:50.2]}
26... Kf7 {[%clk 0:00:45.3]} 27. Kd2 {[%clk 0:01:19.1]} 27... Be2+ {[%clk
0:00:32.8]} 28. Kc1 {[%clk 0:01:19.1]} 28... Bxd1 {[%clk 0:00:33]} 29. Rxd1
{[%clk 0:01:19.5]} 29... Rxd1+ {[%clk 0:00:33.7]} 30. Kxd1 {[%clk 0:01:20.1]}
30... Qf1+ {[%clk 0:00:34.6]} 31. Kc2 {[%clk 0:01:19]} 31... Qxg2 {[%clk
0:00:35.5]} 32. Qxa7 {[%clk 0:01:18.8]} 32... Qxh3 {[%clk 0:00:32.8]} 33. a4
{[%clk 0:01:09.5]} 33... Qf3 {[%clk 0:00:32]} 34. a5 {[%clk 0:01:07.8]} 34... h5
{[%clk 0:00:32.1]} 35. a6 {[%clk 0:01:03.7]} 35... h4 {[%clk 0:00:31.7]} 36. Qb8
{[%clk 0:01:02.2]} 36... Qxf2+ {[%clk 0:00:29.5]} 37. Kb3 {[%clk 0:01:02.7]}
37... Qe3 {[%clk 0:00:11]} 38. a7 {[%clk 0:01:01.1]} 38... Qe6+ {[%clk
0:00:11.1]} 39. Kb4 {[%clk 0:01:00.4]} 39... Qf6 {[%clk 0:00:03.3]} 40. a8=Q
{[%clk 0:00:59.9]} 40... Qd4+ {[%clk 0:00:03.3]} 41. Kb3 {[%clk 0:01:00.2]}
41... Kf6 {[%clk 0:00:01.6]} 42. Qh8+ {[%clk 0:00:59.5]} 1-0

[Event "*** SCC Grand Prix: Titled Tuesday Blitz"]
[Site "Chess.com"]
[Date "2020.10.06"]
[Round "10"]
[White "JoliyRoger"]
[Black "Rogarcia1"]
[Result "1-0"]
[WhiteElo "2470"]
[BlackElo "2204"]
[TimeControl "180+1"]
[EndTime "11:57:36 PDT"]
[Termination "JoliyRoger won by resignation"]

1. Nf3 {[%clk 0:03:00.9]} 1... d5 {[%clk 0:02:59.3]} 2. c4 {[%clk 0:02:58.7]}
2... c6 {[%clk 0:02:57.9]} 3. e3 {[%clk 0:02:58.7]} 3... Nf6 {[%clk 0:02:57]} 4.
b3 {[%clk 0:02:59.2]} 4... g6 {[%clk 0:02:50.3]} 5. Bb2 {[%clk 0:02:59.4]} 5...
Bg7 {[%clk 0:02:50.5]} 6. d4 {[%clk 0:03:00]} 6... O-O {[%clk 0:02:50]} 7. Nbd2
{[%clk 0:03:00.5]} 7... Re8 {[%clk 0:02:46.5]} 8. Bd3 {[%clk 0:03:00.2]} 8...
Nbd7 {[%clk 0:02:45.9]} 9. O-O {[%clk 0:02:59.4]} 9... b6 {[%clk 0:02:43.3]} 10.
h3 {[%clk 0:02:57.9]} 10... Bb7 {[%clk 0:02:43.4]} 11. Qe2 {[%clk 0:02:49.4]}
11... c5 {[%clk 0:02:43.4]} 12. Rfd1 {[%clk 0:02:40.8]} 12... Rc8 {[%clk
0:02:40.3]} 13. Rac1 {[%clk 0:02:39.9]} 13... Rc7 {[%clk 0:02:30.6]} 14. Ne5
{[%clk 0:02:01.6]} 14... Qa8 {[%clk 0:02:24.1]} 15. f4 {[%clk 0:02:00]} 15...
Ne4 {[%clk 0:02:05.8]} 16. Bxe4 {[%clk 0:01:27.1]} 16... dxe4 {[%clk 0:02:04.3]}
17. d5 {[%clk 0:01:27.5]} 17... f5 {[%clk 0:01:41.5]} 18. g4 {[%clk 0:01:26.6]}
18... Rf8 {[%clk 0:01:36.3]} 19. gxf5 {[%clk 0:01:19.7]} 19... Rxf5 {[%clk
0:01:37.2]} 20. Nxe4 {[%clk 0:00:45.4]} 20... Nxe5 {[%clk 0:01:33.3]} 21. fxe5
{[%clk 0:00:45.6]} 21... Bxe5 {[%clk 0:01:30.8]} 22. Rf1 {[%clk 0:00:45.9]}
22... Bxb2 {[%clk 0:01:20.8]} 23. Qxb2 {[%clk 0:00:44.2]} 23... Qf8 {[%clk
0:01:20.2]} 24. Qg2 {[%clk 0:00:26.6]} 24... e6 {[%clk 0:01:07.1]} 25. Ng5
{[%clk 0:00:25.6]} 25... Re7 {[%clk 0:00:59.9]} 26. e4 {[%clk 0:00:23.7]} 26...
Rf6 {[%clk 0:00:20.3]} 27. Nxe6 {[%clk 0:00:20.1]} 27... Qf7 {[%clk 0:00:10.8]}
28. Rxf6 {[%clk 0:00:20.4]} 28... Qxf6 {[%clk 0:00:10.9]} 29. Rf1 {[%clk
0:00:20.9]} 29... Qd4+ {[%clk 0:00:06.7]} 30. Nxd4 {[%clk 0:00:20.1]} 30... cxd4
{[%clk 0:00:05.8]} 31. Qg5 {[%clk 0:00:20.6]} 1-0

[Event "*** SCC Grand Prix: Titled Tuesday Blitz"]
[Site "Chess.com"]
[Date "2020.10.06"]
[Round "10"]
[White "DrMamaliga"]
[Black "GianmarcoVaR"]
[Result "0-1"]
[WhiteElo "2356"]
[BlackElo "2477"]
[TimeControl "180+1"]
[EndTime "11:57:44 PDT"]
[Termination "GianmarcoVaR won by resignation"]

1. c4 {[%clk 0:03:00.9]} 1... Nf6 {[%clk 0:02:46.7]} 2. Nc3 {[%clk 0:03:00.3]}
2... e5 {[%clk 0:02:44.6]} 3. Nf3 {[%clk 0:02:59.7]} 3... Nc6 {[%clk 0:02:44.6]}
4. e3 {[%clk 0:02:59.7]} 4... Bb4 {[%clk 0:02:43.5]} 5. Qc2 {[%clk 0:02:59.8]}
5... d6 {[%clk 0:02:30.5]} 6. Nd5 {[%clk 0:02:57.2]} 6... Bc5 {[%clk 0:02:22.1]}
7. a3 {[%clk 0:02:54.5]} 7... a6 {[%clk 0:02:20.4]} 8. Be2 {[%clk 0:02:53.4]}
8... h6 {[%clk 0:02:16.6]} 9. b4 {[%clk 0:02:51.2]} 9... Ba7 {[%clk 0:02:16.3]}
10. Bb2 {[%clk 0:02:51.7]} 10... O-O {[%clk 0:02:13.6]} 11. O-O {[%clk 0:02:51]}
11... Re8 {[%clk 0:02:10]} 12. Rfe1 {[%clk 0:02:49.5]} 12... Be6 {[%clk
0:02:04.1]} 13. Nxf6+ {[%clk 0:02:35.1]} 13... Qxf6 {[%clk 0:02:03.4]} 14. Rad1
{[%clk 0:02:35.4]} 14... Bf5 {[%clk 0:01:51.9]} 15. Qc1 {[%clk 0:02:21.3]} 15...
Ne7 {[%clk 0:01:50]} 16. d4 {[%clk 0:02:19.3]} 16... e4 {[%clk 0:01:49]} 17. d5
{[%clk 0:02:17.4]} 17... Qg6 {[%clk 0:01:38.4]} 18. Nh4 {[%clk 0:02:17]} 18...
Qg5 {[%clk 0:01:37]} 19. Nxf5 {[%clk 0:02:11.8]} 19... Nxf5 {[%clk 0:01:36.7]}
20. c5 {[%clk 0:02:05.9]} 20... Rad8 {[%clk 0:01:29.9]} 21. Bd4 {[%clk
0:01:48.3]} 21... dxc5 {[%clk 0:01:16.4]} 22. Bxc5 {[%clk 0:01:46.4]} 22... Bb8
{[%clk 0:01:15.8]} 23. Qc4 {[%clk 0:01:32.4]} 23... h5 {[%clk 0:01:10.1]} 24.
Rd2 {[%clk 0:01:20.7]} 24... h4 {[%clk 0:01:09.7]} 25. Red1 {[%clk 0:01:16.1]}
25... Nd6 {[%clk 0:01:05.2]} 26. Bxd6 {[%clk 0:01:14.4]} 26... Rxd6 {[%clk
0:01:03.2]} 27. Rd4 {[%clk 0:01:08.1]} 27... Rg6 {[%clk 0:00:59]} 28. Bf1 {[%clk
0:01:05.2]} 28... Qe5 {[%clk 0:00:55]} 29. g3 {[%clk 0:00:55.6]} 29... hxg3
{[%clk 0:00:38]} 30. hxg3 {[%clk 0:00:56.5]} 30... Rxg3+ {[%clk 0:00:17.8]} 31.
fxg3 {[%clk 0:00:51.7]} 31... Qxg3+ {[%clk 0:00:18.3]} 32. Bg2 {[%clk
0:00:48.7]} 32... Qxe3+ {[%clk 0:00:18.5]} 33. Kh1 {[%clk 0:00:34.9]} 33... Ba7
{[%clk 0:00:05.9]} 34. Rxe4 {[%clk 0:00:31.7]} 34... Rxe4 {[%clk 0:00:06.4]} 35.
Qxe4 {[%clk 0:00:32.6]} 35... Qh6+ {[%clk 0:00:06.8]} 0-1